[Event "*** Titled Tuesday Blitz"]
[Site "Chess.com"]
[Date "2020.10.20"]
[Round "2"]
[White "capatl"]
[Black "Chessalary"]
[Result "0-1"]
[WhiteElo "2537"]
[BlackElo "2334"]
[TimeControl "180+1"]
[EndTime "10:18:03 PDT"]
[Termination "Chessalary won by resignation"]

1. Nf3 {[%clk 0:03:00.9]} 1... d5 {[%clk 0:02:55.4]} 2. g3 {[%clk 0:02:59.5]}
2... Nf6 {[%clk 0:02:54.6]} 3. Bg2 {[%clk 0:02:59.3]} 3... g6 {[%clk 0:02:55.5]}
4. O-O {[%clk 0:02:59]} 4... Bg7 {[%clk 0:02:54.4]} 5. d4 {[%clk 0:02:54.3]}
5... c6 {[%clk 0:02:38.3]} 6. Nbd2 {[%clk 0:02:34.7]} 6... O-O {[%clk
0:02:39.2]} 7. Re1 {[%clk 0:02:31.6]} 7... Nbd7 {[%clk 0:02:35.1]} 8. e4 {[%clk
0:02:29.3]} 8... dxe4 {[%clk 0:02:35.9]} 9. Nxe4 {[%clk 0:02:29.8]} 9... Nxe4
{[%clk 0:02:36.5]} 10. Rxe4 {[%clk 0:02:30.7]} 10... Nf6 {[%clk 0:02:37.2]} 11.
Re1 {[%clk 0:02:30.5]} 11... Bg4 {[%clk 0:02:36.8]} 12. c3 {[%clk 0:02:29.6]}
12... Re8 {[%clk 0:02:34.9]} 13. Qb3 {[%clk 0:02:23.7]} 13... Qb6 {[%clk
0:02:19.2]} 14. Ng5 {[%clk 0:02:08.6]} 14... e6 {[%clk 0:02:06.6]} 15. h3 {[%clk
0:01:56.1]} 15... Bf5 {[%clk 0:02:02.3]} 16. Qd1 {[%clk 0:01:28.4]} 16... h5
{[%clk 0:01:39.6]} 17. Kh2 {[%clk 0:01:16.3]} 17... Rad8 {[%clk 0:01:37.4]} 18.
Qe2 {[%clk 0:00:51.6]} 18... Qc7 {[%clk 0:01:12.2]} 19. Bf4 {[%clk 0:00:49.4]}
19... Qb6 {[%clk 0:01:09.2]} 20. f3 {[%clk 0:00:46.8]} 20... Nd5 {[%clk
0:01:06.6]} 21. Bc1 {[%clk 0:00:38]} 21... e5 {[%clk 0:01:05.7]} 22. dxe5 {[%clk
0:00:18.6]} 22... Bxe5 {[%clk 0:01:03.4]} 23. Qf1 {[%clk 0:00:19.5]} 23... Bf6
{[%clk 0:00:51.2]} 24. h4 {[%clk 0:00:19]} 24... Qc7 {[%clk 0:00:46.4]} 25. c4
{[%clk 0:00:18.1]} 25... Nb4 {[%clk 0:00:35.4]} 26. Bf4 {[%clk 0:00:18.6]} 26...
Qb6 {[%clk 0:00:22.1]} 27. Rxe8+ {[%clk 0:00:18.4]} 27... Rxe8 {[%clk
0:00:21.4]} 28. Re1 {[%clk 0:00:19.3]} 28... Rd8 {[%clk 0:00:19.7]} 29. a3
{[%clk 0:00:18.4]} 29... Nc2 {[%clk 0:00:19.7]} 30. Rd1 {[%clk 0:00:17.2]} 30...
Re8 {[%clk 0:00:19.8]} 31. b4 {[%clk 0:00:16]} 31... Ne3 {[%clk 0:00:19.1]} 32.
Qe2 {[%clk 0:00:15]} 32... Ng4+ {[%clk 0:00:17.6]} 33. fxg4 {[%clk 0:00:15.3]}
33... Rxe2 {[%clk 0:00:18.5]} 34. Rd8+ {[%clk 0:00:15.8]} 34... Bxd8 {[%clk
0:00:18.1]} 35. gxf5 {[%clk 0:00:16.3]} 35... Qf2 {[%clk 0:00:17.9]} 0-1

[Event "*** Titled Tuesday Blitz"]
[Site "Chess.com"]
[Date "2020.10.20"]
[Round "2"]
[White "Shockerlover"]
[Black "infinitegiantkiller"]
[Result "0-1"]
[WhiteElo "1890"]
[BlackElo "2355"]
[TimeControl "180+1"]
[EndTime "10:18:03 PDT"]
[Termination "infinitegiantkiller won by resignation"]

1. d4 {[%clk 0:03:00.8]} 1... e6 {[%clk 0:03:00.9]} 2. Nf3 {[%clk 0:02:59.9]}
2... d5 {[%clk 0:03:00.5]} 3. c4 {[%clk 0:02:59.2]} 3... Nf6 {[%clk 0:03:01.4]}
4. e3 {[%clk 0:02:56.2]} 4... Be7 {[%clk 0:03:01.4]} 5. Bd3 {[%clk 0:02:55.5]}
5... O-O {[%clk 0:03:01.5]} 6. O-O {[%clk 0:02:54.9]} 6... b6 {[%clk 0:03:00.4]}
7. cxd5 {[%clk 0:02:53.3]} 7... exd5 {[%clk 0:03:00.4]} 8. Nc3 {[%clk
0:02:52.5]} 8... Bb7 {[%clk 0:03:00.9]} 9. Qe2 {[%clk 0:02:51.6]} 9... Nbd7
{[%clk 0:03:00.8]} 10. Rd1 {[%clk 0:02:50]} 10... Rc8 {[%clk 0:02:59.8]} 11. Nb5
{[%clk 0:02:38]} 11... a6 {[%clk 0:02:59]} 12. Nc3 {[%clk 0:02:26.5]} 12... a5
{[%clk 0:02:59.3]} 13. b3 {[%clk 0:02:03.8]} 13... c5 {[%clk 0:02:47.1]} 14. Bb2
{[%clk 0:01:59]} 14... Qc7 {[%clk 0:02:33.6]} 15. Nb5 {[%clk 0:01:57.9]} 15...
Qb8 {[%clk 0:02:34]} 16. Rac1 {[%clk 0:01:52.6]} 16... Ne4 {[%clk 0:02:21.2]}
17. Ne5 {[%clk 0:01:29.2]} 17... Ndf6 {[%clk 0:02:01.9]} 18. dxc5 {[%clk
0:01:22.6]} 18... Bxc5 {[%clk 0:02:02.1]} 19. Bb1 {[%clk 0:01:19.2]} 19... Rfe8
{[%clk 0:01:52]} 20. Nd3 {[%clk 0:01:17]} 20... Bf8 {[%clk 0:01:49.9]} 21. Nd4
{[%clk 0:01:14.2]} 21... Nc5 {[%clk 0:01:48.4]} 22. Qf3 {[%clk 0:01:04.4]} 22...
Nxd3 {[%clk 0:01:44]} 23. Bxd3 {[%clk 0:01:03]} 23... Rxc1 {[%clk 0:01:43.5]}
24. Rxc1 {[%clk 0:01:01.8]} 24... Rc8 {[%clk 0:01:44.2]} 25. Nf5 {[%clk
0:00:42.9]} 25... Rxc1+ {[%clk 0:01:43.4]} 26. Bxc1 {[%clk 0:00:42.7]} 26... Ne4
{[%clk 0:01:39.6]} 27. Qg4 {[%clk 0:00:31.5]} 27... g6 {[%clk 0:01:13.4]} 28.
Nd4 {[%clk 0:00:20]} 28... Qc8 {[%clk 0:01:04.4]} 29. Qf3 {[%clk 0:00:18.7]}
29... Qxc1+ {[%clk 0:01:02.8]} 30. Bf1 {[%clk 0:00:18.5]} 30... Qxf1+ {[%clk
0:01:02.5]} 31. Kxf1 {[%clk 0:00:18]} 31... Nd2+ {[%clk 0:01:03.1]} 32. Ke2
{[%clk 0:00:17.8]} 32... Nxf3 {[%clk 0:01:04]} 33. gxf3 {[%clk 0:00:16.1]} 33...
Bc5 {[%clk 0:01:04.6]} 34. f4 {[%clk 0:00:17]} 34... Bxd4 {[%clk 0:01:04.4]} 35.
exd4 {[%clk 0:00:17.9]} 35... Kf8 {[%clk 0:01:04.9]} 36. Kf3 {[%clk 0:00:18.8]}
36... f5 {[%clk 0:01:05.5]} 37. h4 {[%clk 0:00:17.8]} 37... Kf7 {[%clk
0:01:05.9]} 38. h5 {[%clk 0:00:18.7]} 38... gxh5 {[%clk 0:01:05.5]} 39. Kg3
{[%clk 0:00:19.1]} 39... Kg6 {[%clk 0:01:05.9]} 40. Kh4 {[%clk 0:00:20]} 40...
Ba6 {[%clk 0:01:06.6]} 41. a3 {[%clk 0:00:19.3]} 41... Bd3 {[%clk 0:01:05.9]}
42. b4 {[%clk 0:00:19.1]} 42... axb4 {[%clk 0:01:06.8]} 43. axb4 {[%clk
0:00:18.7]} 43... Be2 {[%clk 0:01:03.8]} 44. Kg3 {[%clk 0:00:17.3]} 44... h6
{[%clk 0:01:03.8]} 45. Kh4 {[%clk 0:00:16.8]} 45... Kf6 {[%clk 0:01:04.3]} 46.
Kg3 {[%clk 0:00:15.9]} 46... Ke6 {[%clk 0:01:04.5]} 47. Kh4 {[%clk 0:00:14.1]}
47... Kd6 {[%clk 0:01:04.8]} 48. Kg3 {[%clk 0:00:10.4]} 48... Kc6 {[%clk
0:01:04.4]} 49. f3 {[%clk 0:00:09.9]} 49... Kb5 {[%clk 0:01:04.3]} 50. Kf2
{[%clk 0:00:10.8]} 50... Bd1 {[%clk 0:01:04.4]} 51. Ke1 {[%clk 0:00:10.3]} 51...
Bxf3 {[%clk 0:01:04.6]} 52. Kf2 {[%clk 0:00:10.1]} 52... Bg4 {[%clk 0:01:05.1]}
53. Kg3 {[%clk 0:00:10]} 53... Kxb4 {[%clk 0:01:06]} 0-1

[Event "*** Titled Tuesday Blitz"]
[Site "Chess.com"]
[Date "2020.10.20"]
[Round "2"]
[White "igorkovalenko"]
[Black "Artyom_ChessMate"]
[Result "1-0"]
[WhiteElo "2811"]
[BlackElo "2510"]
[TimeControl "180+1"]
[EndTime "10:18:05 PDT"]
[Termination "igorkovalenko won on time"]

1. e4 {[%clk 0:02:54.3]} 1... c5 {[%clk 0:02:51.3]} 2. Nf3 {[%clk 0:02:54]} 2...
d6 {[%clk 0:02:51.5]} 3. Nc3 {[%clk 0:02:47.7]} 3... Nf6 {[%clk 0:02:46.8]} 4.
Bc4 {[%clk 0:02:47.2]} 4... Nc6 {[%clk 0:02:41.9]} 5. d3 {[%clk 0:02:43.2]} 5...
g6 {[%clk 0:02:41.3]} 6. h3 {[%clk 0:02:42.1]} 6... Bg7 {[%clk 0:02:41.6]} 7. a3
{[%clk 0:02:42.4]} 7... O-O {[%clk 0:02:41.7]} 8. O-O {[%clk 0:02:41.5]} 8... a6
{[%clk 0:02:41.8]} 9. Ba2 {[%clk 0:02:40.4]} 9... b5 {[%clk 0:02:41.8]} 10. Rb1
{[%clk 0:02:38.2]} 10... Rb8 {[%clk 0:02:40.3]} 11. Be3 {[%clk 0:02:33.6]} 11...
Bb7 {[%clk 0:02:28.9]} 12. Qd2 {[%clk 0:02:31.7]} 12... Qd7 {[%clk 0:02:22.3]}
13. b4 {[%clk 0:02:28.1]} 13... cxb4 {[%clk 0:02:03]} 14. axb4 {[%clk 0:02:29]}
14... Rbc8 {[%clk 0:01:59]} 15. Ne2 {[%clk 0:02:24.1]} 15... e5 {[%clk
0:01:54.1]} 16. Bg5 {[%clk 0:02:20.3]} 16... Rfe8 {[%clk 0:01:37.6]} 17. Nc3
{[%clk 0:02:02.3]} 17... Ne7 {[%clk 0:00:52.4]} 18. Bb3 {[%clk 0:01:52.6]} 18...
h6 {[%clk 0:00:50.4]} 19. Be3 {[%clk 0:01:49.1]} 19... Qc7 {[%clk 0:00:43.5]}
20. Ne2 {[%clk 0:01:46.5]} 20... d5 {[%clk 0:00:41.9]} 21. exd5 {[%clk
0:01:38.3]} 21... Nexd5 {[%clk 0:00:42.8]} 22. Bxh6 {[%clk 0:01:36.6]} 22... e4
{[%clk 0:00:34.7]} 23. Bxg7 {[%clk 0:01:10.3]} 23... exf3 {[%clk 0:00:30.7]} 24.
Qh6 {[%clk 0:01:09.9]} 24... Nh7 {[%clk 0:00:23.8]} 25. Bd4 {[%clk 0:00:58.6]}
25... f6 {[%clk 0:00:03.2]} 26. Qxg6+ {[%clk 0:00:58]} 26... Qg7 {[%clk
0:00:03]} 27. Qxg7+ {[%clk 0:00:56.2]} 27... Kxg7 {[%clk 0:00:03.2]} 28. Bxd5
{[%clk 0:00:20.1]} 28... Bxd5 {[%clk 0:00:02.6]} 29. Nf4 {[%clk 0:00:20.1]}
29... fxg2 {[%clk 0:00:02]} 30. Rfe1 {[%clk 0:00:18]} 30... Rxe1+ {[%clk
0:00:01.4]} 31. Rxe1 {[%clk 0:00:17.6]} 31... Bf3 {[%clk 0:00:01.5]} 32. Re3
{[%clk 0:00:16.5]} 1-0

[Event "*** Titled Tuesday Blitz"]
[Site "Chess.com"]
[Date "2020.10.20"]
[Round "2"]
[White "shineatchess"]
[Black "maxip32"]
[Result "0-1"]
[WhiteElo "2195"]
[BlackElo "2423"]
[TimeControl "180+1"]
[EndTime "10:18:05 PDT"]
[Termination "maxip32 won on time"]

1. e4 {[%clk 0:03:00.9]} 1... c5 {[%clk 0:02:58.7]} 2. Nf3 {[%clk 0:03:00]} 2...
d6 {[%clk 0:02:54.5]} 3. Bb5+ {[%clk 0:02:59.7]} 3... Nd7 {[%clk 0:02:53.3]} 4.
O-O {[%clk 0:02:58.2]} 4... a6 {[%clk 0:02:53.3]} 5. Bd3 {[%clk 0:02:57.7]} 5...
e5 {[%clk 0:02:50.5]} 6. Re1 {[%clk 0:02:55]} 6... Ngf6 {[%clk 0:02:50.8]} 7. c3
{[%clk 0:02:53.2]} 7... Be7 {[%clk 0:02:48.1]} 8. a4 {[%clk 0:02:46.8]} 8... O-O
{[%clk 0:02:49]} 9. Bc2 {[%clk 0:02:46.2]} 9... b6 {[%clk 0:02:49.9]} 10. d4
{[%clk 0:02:45.8]} 10... Bb7 {[%clk 0:02:48.1]} 11. Nbd2 {[%clk 0:02:43.7]}
11... Qc7 {[%clk 0:02:46.9]} 12. d5 {[%clk 0:02:43.3]} 12... Rfe8 {[%clk
0:02:36.2]} 13. Nf1 {[%clk 0:02:41.9]} 13... Bf8 {[%clk 0:02:35.7]} 14. Ng3
{[%clk 0:02:41.8]} 14... g6 {[%clk 0:02:36.1]} 15. h4 {[%clk 0:02:29.9]} 15...
b5 {[%clk 0:02:07.9]} 16. h5 {[%clk 0:02:11.9]} 16... c4 {[%clk 0:02:06.8]} 17.
Nh4 {[%clk 0:01:57.9]} 17... Be7 {[%clk 0:01:15.7]} 18. hxg6 {[%clk 0:01:49.4]}
18... hxg6 {[%clk 0:01:04.8]} 19. Bg5 {[%clk 0:01:46.8]} 19... Nxd5 {[%clk
0:00:57.8]} 20. exd5 {[%clk 0:01:24.3]} 20... Bxg5 {[%clk 0:00:56.2]} 21. Nxg6
{[%clk 0:01:05.1]} 21... Nf6 {[%clk 0:00:30.7]} 22. Ne4 {[%clk 0:00:36.6]} 22...
Nxe4 {[%clk 0:00:22.6]} 23. Rxe4 {[%clk 0:00:17]} 23... fxg6 {[%clk 0:00:22.9]}
24. Rg4 {[%clk 0:00:09.9]} 24... Qe7 {[%clk 0:00:14]} 25. Bxg6 {[%clk
0:00:09.1]} 25... Rf8 {[%clk 0:00:14.1]} 26. Be4 {[%clk 0:00:07.6]} 26... Rf4
{[%clk 0:00:12.5]} 27. Rxf4 {[%clk 0:00:06]} 27... exf4 {[%clk 0:00:13.4]} 28.
Qf3 {[%clk 0:00:05.1]} 28... Re8 {[%clk 0:00:11.3]} 29. Re1 {[%clk 0:00:03.6]}
29... Kf8 {[%clk 0:00:09.5]} 0-1

[Event "*** Titled Tuesday Blitz"]
[Site "Chess.com"]
[Date "2020.10.20"]
[Round "2"]
[White "Angel_Hranitel_37"]
[Black "Keures"]
[Result "1-0"]
[WhiteElo "2507"]
[BlackElo "2291"]
[TimeControl "180+1"]
[EndTime "10:18:07 PDT"]
[Termination "Angel_Hranitel_37 won by checkmate"]

1. d4 {[%clk 0:02:59.5]} 1... Nf6 {[%clk 0:02:59.5]} 2. Nf3 {[%clk 0:02:59.9]}
2... d5 {[%clk 0:02:56.3]} 3. c4 {[%clk 0:02:59.6]} 3... c6 {[%clk 0:02:49]} 4.
g3 {[%clk 0:02:59.1]} 4... g6 {[%clk 0:02:46.3]} 5. Bg2 {[%clk 0:02:59.4]} 5...
Bg7 {[%clk 0:02:46.9]} 6. O-O {[%clk 0:03:00.3]} 6... O-O {[%clk 0:02:47.4]} 7.
Qb3 {[%clk 0:03:00.8]} 7... Qb6 {[%clk 0:02:46.8]} 8. Nc3 {[%clk 0:02:59.1]}
8... Nbd7 {[%clk 0:02:42.1]} 9. c5 {[%clk 0:02:39.1]} 9... Qxb3 {[%clk
0:02:40.9]} 10. axb3 {[%clk 0:02:40]} 10... Re8 {[%clk 0:02:37.2]} 11. b4 {[%clk
0:02:36.8]} 11... e5 {[%clk 0:02:35.1]} 12. b5 {[%clk 0:02:37.1]} 12... exd4
{[%clk 0:02:27.6]} 13. Nxd4 {[%clk 0:02:28.8]} 13... Ne4 {[%clk 0:02:24.2]} 14.
bxc6 {[%clk 0:02:26.8]} 14... Bxd4 {[%clk 0:02:17.1]} 15. cxd7 {[%clk
0:02:26.1]} 15... Bxd7 {[%clk 0:02:14.2]} 16. Nxd5 {[%clk 0:02:26]} 16... Nxc5
{[%clk 0:02:10.4]} 17. Nc7 {[%clk 0:02:22.2]} 17... Rec8 {[%clk 0:02:07.2]} 18.
Nxa8 {[%clk 0:02:19.7]} 18... Rxa8 {[%clk 0:02:08.1]} 19. Be3 {[%clk 0:02:08.2]}
19... Bxe3 {[%clk 0:01:53.5]} 20. fxe3 {[%clk 0:02:09.1]} 20... a6 {[%clk
0:01:29.3]} 21. b4 {[%clk 0:02:07]} 21... Nb3 {[%clk 0:01:14.2]} 22. Ra3 {[%clk
0:01:44.4]} 22... Nd2 {[%clk 0:01:14]} 23. Rc1 {[%clk 0:01:40.3]} 23... Bb5
{[%clk 0:00:50.2]} 24. Rac3 {[%clk 0:01:26.3]} 24... Bxe2 {[%clk 0:00:43.1]} 25.
Rc8+ {[%clk 0:01:19.8]} 25... Rxc8 {[%clk 0:00:42.6]} 26. Rxc8+ {[%clk
0:01:20.7]} 26... Kg7 {[%clk 0:00:43.1]} 27. Rc2 {[%clk 0:01:21.6]} 27... Nf3+
{[%clk 0:00:40.3]} 28. Kf2 {[%clk 0:01:21.8]} 28... Bd3 {[%clk 0:00:34.8]} 29.
Rc7 {[%clk 0:00:55.6]} 29... Ne5 {[%clk 0:00:32.8]} 30. Rxb7 {[%clk 0:00:55.4]}
30... Bb5 {[%clk 0:00:32.8]} 31. Bd5 {[%clk 0:00:52.5]} 31... Kf6 {[%clk
0:00:26.9]} 32. h3 {[%clk 0:00:50.8]} 32... h6 {[%clk 0:00:26.3]} 33. e4 {[%clk
0:00:41.2]} 33... g5 {[%clk 0:00:24.9]} 34. Ke3 {[%clk 0:00:41.3]} 34... Kg6
{[%clk 0:00:24.3]} 35. Kd4 {[%clk 0:00:34.7]} 35... f6 {[%clk 0:00:24.1]} 36.
Be6 {[%clk 0:00:30.9]} 36... Nc6+ {[%clk 0:00:20]} 37. Kc5 {[%clk 0:00:26]}
37... Ne5 {[%clk 0:00:16.2]} 38. g4 {[%clk 0:00:20.7]} 38... Nd3+ {[%clk
0:00:09.9]} 39. Kd4 {[%clk 0:00:20.9]} 39... h5 {[%clk 0:00:09.7]} 40. Bf5+
{[%clk 0:00:20.7]} 40... Kh6 {[%clk 0:00:10.2]} 41. Rh7# {[%clk 0:00:21.6]} 1-0

[Event "*** Titled Tuesday Blitz"]
[Site "Chess.com"]
[Date "2020.10.20"]
[Round "2"]
[White "Sergey85Rodchenkov"]
[Black "chesslh19"]
[Result "1/2-1/2"]
[WhiteElo "2419"]
[BlackElo "2220"]
[TimeControl "180+1"]
[EndTime "10:18:07 PDT"]
[Termination "Game drawn by repetition"]

1. e4 {[%clk 0:02:58.1]} 1... e5 {[%clk 0:02:59.9]} 2. Nf3 {[%clk 0:02:56.6]}
2... Nf6 {[%clk 0:02:59.3]} 3. Nxe5 {[%clk 0:02:55.2]} 3... d6 {[%clk
0:02:59.6]} 4. Nf3 {[%clk 0:02:54.7]} 4... Nxe4 {[%clk 0:02:59.8]} 5. d4 {[%clk
0:02:54.8]} 5... d5 {[%clk 0:02:59.7]} 6. Bd3 {[%clk 0:02:54.8]} 6... Be7 {[%clk
0:03:00.3]} 7. O-O {[%clk 0:02:54.6]} 7... Nc6 {[%clk 0:02:59.5]} 8. Re1 {[%clk
0:02:54.2]} 8... Bg4 {[%clk 0:02:58.5]} 9. c3 {[%clk 0:02:53.2]} 9... f5 {[%clk
0:02:56.9]} 10. Nbd2 {[%clk 0:02:49.5]} 10... O-O {[%clk 0:02:55.1]} 11. Nf1
{[%clk 0:02:47.7]} 11... Bd6 {[%clk 0:02:35.5]} 12. h3 {[%clk 0:02:32.3]} 12...
Bh5 {[%clk 0:02:24.6]} 13. b4 {[%clk 0:02:23.9]} 13... Ne7 {[%clk 0:02:18]} 14.
Bd2 {[%clk 0:02:19.7]} 14... c6 {[%clk 0:02:13]} 15. a4 {[%clk 0:02:12.4]} 15...
a6 {[%clk 0:01:25.1]} 16. a5 {[%clk 0:02:10.1]} 16... Bxf3 {[%clk 0:01:18.6]}
17. Qxf3 {[%clk 0:02:08.4]} 17... Nxd2 {[%clk 0:01:18.8]} 18. Nxd2 {[%clk
0:02:07.2]} 18... Qd7 {[%clk 0:01:12.3]} 19. Nb3 {[%clk 0:02:05.5]} 19... g6
{[%clk 0:01:04.4]} 20. Nc5 {[%clk 0:02:05.2]} 20... Bxc5 {[%clk 0:01:00.8]} 21.
bxc5 {[%clk 0:02:05]} 21... Rfe8 {[%clk 0:00:58.1]} 22. Rab1 {[%clk 0:02:03.3]}
22... Kg7 {[%clk 0:00:50.5]} 23. Qf4 {[%clk 0:02:00.3]} 23... Ng8 {[%clk
0:00:47.1]} 24. Re5 {[%clk 0:01:34.9]} 24... Rxe5 {[%clk 0:00:42]} 25. Qxe5+
{[%clk 0:01:34.3]} 25... Nf6 {[%clk 0:00:39.8]} 26. c4 {[%clk 0:01:06.7]} 26...
Re8 {[%clk 0:00:37.6]} 27. Qd6 {[%clk 0:01:06]} 27... Rd8 {[%clk 0:00:32.1]} 28.
Qxd7+ {[%clk 0:01:03]} 28... Rxd7 {[%clk 0:00:33]} 29. cxd5 {[%clk 0:01:02.3]}
29... Nxd5 {[%clk 0:00:31.5]} 30. Bc4 {[%clk 0:00:52.6]} 30... Nc3 {[%clk
0:00:29.4]} 31. Rb3 {[%clk 0:00:50.5]} 31... Nb5 {[%clk 0:00:28.9]} 32. d5
{[%clk 0:00:44.8]} 32... cxd5 {[%clk 0:00:23.3]} 33. Bxb5 {[%clk 0:00:44.3]}
33... axb5 {[%clk 0:00:23.5]} 34. Rxb5 {[%clk 0:00:44.6]} 34... d4 {[%clk
0:00:16.3]} 35. Kf1 {[%clk 0:00:43.3]} 35... Kf6 {[%clk 0:00:14.8]} 36. f4
{[%clk 0:00:38.5]} 36... Ke6 {[%clk 0:00:14.4]} 37. Ke2 {[%clk 0:00:37.4]} 37...
Kd5 {[%clk 0:00:14.1]} 38. Kd3 {[%clk 0:00:36.2]} 38... Kc6 {[%clk 0:00:14.1]}
39. Kc4 {[%clk 0:00:32]} 39... d3 {[%clk 0:00:14]} 40. Rb6+ {[%clk 0:00:32.2]}
40... Kc7 {[%clk 0:00:14.1]} 41. Rb1 {[%clk 0:00:28.2]} 41... Kc6 {[%clk
0:00:14.1]} 42. Rb6+ {[%clk 0:00:26.8]} 42... Kc7 {[%clk 0:00:14.1]} 43. Rb1
{[%clk 0:00:26.2]} 43... Kc6 {[%clk 0:00:14.4]} 44. Rb6+ {[%clk 0:00:25.6]}
1/2-1/2

[Event "*** Titled Tuesday Blitz"]
[Site "Chess.com"]
[Date "2020.10.20"]
[Round "2"]
[White "mjray79"]
[Black "julinha97"]
[Result "0-1"]
[WhiteElo "2417"]
[BlackElo "2246"]
[TimeControl "180+1"]
[EndTime "10:18:09 PDT"]
[Termination "julinha97 won by checkmate"]

1. d4 {[%clk 0:03:00.9]} 1... Nf6 {[%clk 0:02:59.5]} 2. c4 {[%clk 0:03:01]} 2...
g6 {[%clk 0:02:59.4]} 3. Nc3 {[%clk 0:03:00.2]} 3... d5 {[%clk 0:02:59.2]} 4.
cxd5 {[%clk 0:03:00.1]} 4... Nxd5 {[%clk 0:03:00.1]} 5. e4 {[%clk 0:03:00]} 5...
Nxc3 {[%clk 0:03:00.4]} 6. bxc3 {[%clk 0:03:00.4]} 6... c5 {[%clk 0:03:01.3]} 7.
Nf3 {[%clk 0:02:53.2]} 7... Bg7 {[%clk 0:03:00.9]} 8. Bg5 {[%clk 0:02:52.6]}
8... O-O {[%clk 0:02:53.6]} 9. Be2 {[%clk 0:02:45.4]} 9... Nc6 {[%clk
0:02:50.8]} 10. Be3 {[%clk 0:02:43.1]} 10... Bg4 {[%clk 0:02:45.1]} 11. e5
{[%clk 0:02:40.2]} 11... cxd4 {[%clk 0:02:40.4]} 12. cxd4 {[%clk 0:02:37]} 12...
Qa5+ {[%clk 0:02:33.6]} 13. Bd2 {[%clk 0:02:28.7]} 13... Qd5 {[%clk 0:02:27.7]}
14. Bc3 {[%clk 0:02:26.3]} 14... Rfd8 {[%clk 0:02:18.1]} 15. O-O {[%clk
0:02:24.9]} 15... Rac8 {[%clk 0:02:14.6]} 16. Rc1 {[%clk 0:02:13.9]} 16... Bh6
{[%clk 0:02:09]} 17. Rc2 {[%clk 0:01:51]} 17... Bf5 {[%clk 0:02:06.6]} 18. Bd3
{[%clk 0:01:42.4]} 18... Bxd3 {[%clk 0:02:06]} 19. Qxd3 {[%clk 0:01:43.3]} 19...
Nxe5 {[%clk 0:01:58.5]} 20. Nxe5 {[%clk 0:01:42.6]} 20... Qxe5 {[%clk
0:01:57.4]} 21. Qh3 {[%clk 0:01:41.9]} 21... Qe4 {[%clk 0:01:44.2]} 22. Rb2
{[%clk 0:01:28.8]} 22... Bg7 {[%clk 0:01:35]} 23. Re1 {[%clk 0:01:27.6]} 23...
Qc6 {[%clk 0:01:26.9]} 24. Ba5 {[%clk 0:00:52.8]} 24... b6 {[%clk 0:01:19.1]}
25. Bb4 {[%clk 0:00:52.8]} 25... Rxd4 {[%clk 0:01:06.5]} 26. Bxe7 {[%clk
0:00:44.7]} 26... Re4 {[%clk 0:01:00]} 27. Rbb1 {[%clk 0:00:28.4]} 27... Re8
{[%clk 0:00:59.2]} 28. Qa3 {[%clk 0:00:21.3]} 28... Bf8 {[%clk 0:00:49.5]} 29.
Rec1 {[%clk 0:00:20.3]} 29... Bxe7 {[%clk 0:00:44.2]} 30. Qxa7 {[%clk
0:00:20.2]} 30... Bc5 {[%clk 0:00:41.3]} 31. h3 {[%clk 0:00:18.2]} 31... Qf6
{[%clk 0:00:39.4]} 32. Rc2 {[%clk 0:00:17]} 32... Re1+ {[%clk 0:00:38.4]} 33.
Rxe1 {[%clk 0:00:16.9]} 33... Rxe1+ {[%clk 0:00:39.3]} 34. Kh2 {[%clk
0:00:17.4]} 34... Bxf2 {[%clk 0:00:36.7]} 35. Qb8+ {[%clk 0:00:16]} 35... Kg7
{[%clk 0:00:36.2]} 36. g3 {[%clk 0:00:13.9]} 36... Bc5 {[%clk 0:00:32.5]} 37.
Qc7 {[%clk 0:00:11.6]} 37... Qa1 {[%clk 0:00:30.3]} 38. Kg2 {[%clk 0:00:07.2]}
38... Rg1+ {[%clk 0:00:23.7]} 39. Kf3 {[%clk 0:00:07.4]} 39... Qf1+ {[%clk
0:00:23.9]} 40. Ke4 {[%clk 0:00:06.6]} 40... Qf5# {[%clk 0:00:16.3]} 0-1